Cogmind - Beta 10.2 @@@ ROGUE MODE // 2021.01.10 @ 13:35:23 Player: CrossedViper Result: Destroyed by D-53 Grenadier with Mini Grenade Launcher Performance ------------- Evolutions (0) 0 Regions Visited (2) 400 Robots Destroyed (19) 95 Value Destroyed (481) 481 Prototype IDs (0) 0 Alien Tech Used (0) 0 Bonus (-38) -38 TOTAL SCORE: 938 Bonus ------- Friendly Fire -38 Cogmind --------- Core Integrity 0/250 Matter 244/300 Energy 99/250 System Corruption 1% Temperature Cool (0) Movement Core (450) Ox8 Location -10/Mines Parts ------- > --- POWER (1) -------- Ion Engine > --- PROPULSION (2) --- (None) > --- UTILITY (2) ------ Large Storage Unit Makeshift Armor Plating > --- WEAPON (2) ------- Mining Claw > --- INVENTORY (10) --- Ion Engine Large Storage Unit Terrain Scanner Mining Laser Mining Claw Peak State ------------ > --- POWER ------------ Ion Engine > --- PROPULSION ------- Light Treads Light Treads > --- UTILITY ---------- Large Storage Unit Large Storage Unit > --- WEAPON ----------- EM Pulse Gun Medium Laser > --- INVENTORY -------- Ion Engine Ion Engine Terrain Scanner Makeshift Armor Plating Mining Laser Mining Claw Mining Claw [Rating: 8] Favorites ----------- Power Ion Engine Engine Ion Engine Propulsion Light Treads Treads Light Treads Leg Aluminum Leg Utility Large Storage Unit Storage Large Storage Unit Protection Makeshift Armor Plating Weapon Light Assault Rifle Energy Gun Small Laser Ballistic Gun Light Assault Rifle Launcher Grenade Launcher Slashing Weapon Mining Claw Build | -11 -10 -10 ------- Run | Scr Mat Min Slots Evolved . | . . . Power . | . . . Propulsion . | . . . Utility . | . . . Weapon . | . . . Parts Attached 18 | . 10 8 Power 1 | . . 1 Engine 1 | . . 1 Core . | . . . Reactor . | . . . Propulsion 3 | . 2 1 Treads 3 | . 2 1 Leg . | . . . Wheel . | . . . Hover . | . . . Flight . | . . . Utility 3 | . 2 1 Device . | . . . Storage 2 | . 2 . Processor . | . . . Hackware . | . . . Protection 1 | . . 1 Artifact . | . . . Weapon 11 | . 6 5 Energy Gun 6 | . 3 3 Energy Cannon . | . . . Ballistic Gun . | . . . Ballistic Cannon . | . . . Launcher 4 | . 3 1 Special Weapon . | . . . Impact Weapon . | . . . Slashing Weapon 1 | . . 1 Piercing Weapon . | . . . Special Melee Weapon . | . . . Unidentified Prototypes . | . . . Parts Lost 8 | . . 8 Power 1 | . . 1 Propulsion 2 | . . 2 Utility . | . . . Weapon 5 | . . 5 Highest Loss Streak 5 | . . 5 Average Slot Usage (%) 94 | . 92 98 Engine 14 | . 14 14 Treads 27 | . 27 27 Storage 23 | . 21 27 Energy Gun 13 | . 13 12 Ballistic Gun 13 | . 14 11 Launcher 1 | . . 2 Naked Turns . | . . . Heaviest Build 41 | 11 39 41 Greatest Support 40 | 20 40 40 Greatest Overweight (x) 8 | . . 8 Average Overweight (x) . | . . . Largest Inventory Capacity 16 | 6 16 16 Average Capacity 12 | 6 11 15 Most Carried 9 | 6 7 9 Average Carried 6 | 6 5 7 Final Capacity 16 | 6 16 10 Final Carried 7 | 6 7 5 Class Distribution -------------------- 100% | Mutant Dominant Class ---------------- Mutant | -10/Materials Mutant | -10/Mines Resources | -11 -10 -10 ----------- Run | Scr Mat Min Matter Collected 519 | 200 195 124 Remotely . | . . . Salvage Created 711 | . 646 65 Parts 39 | . 38 1 Haulers Intercepted 2 | . 2 . Recyclers Shooed . | . . . Parts Field Recycled . | . . . Retrieved Matter . | . . . Parts Self-Destructed . | . . . Prevented . | . . . Kills | -11 -10 -10 ------- Run | Scr Mat Min Combat Hostiles Destroyed 21 | . 12 9 Guns 5 | . 4 1 AOE 16 | . 8 8 Classes Destroyed 7 | . 5 2 Worker 1 | . . 1 Hauler 2 | . 2 . Recycler 2 | . 2 . Watcher 2 | . 2 . Swarmer 3 | . 3 . Grunt 9 | . 9 . Assembled 9 | . . 9 Best Kill Streak 6 | . 6 5 Combat Bots Only 5 | . 5 5 Max Kills in Single Turn 3 | . 3 1 Gunslinging . | . . . Exploded 3 | . 3 1 Melee . | . . . Uniques/NPCs Destroyed . | . . . Combat | -11 -10 -10 -------- Run | Scr Mat Min Damage Taken 1042 | . 190 852 Core 265 | . 41 224 Absorbed by Shields . | . . . Core Remaining (%) 100 | 100 . . Volleys Fired 65 | . 41 24 Largest 2 | . 2 2 Hottest 90 | . 60 90 Shots Fired 103 | . 71 32 Gun 83 | . 65 18 Cannon . | . . . Launcher 20 | . 6 14 Special . | . . . Kinetic 39 | . 35 4 Thermal 40 | . 30 10 Explosive 20 | . 6 14 Electromagnetic 4 | . . 4 Robot Hit Streak 10 | . 10 10 Robot Miss Streak 3 | . 3 3 Penetration Max . | . . . Secondary Targets . | . . . Shots Hit Robots 69 | . 48 21 Core Hits 57 | . 35 22 Critical Hits 1 | . 1 . Critical Kills . | . . . Critical Parts Destroyed 1 | . 1 . Melee Attacks . | . . . Impact . | . . . Slashing . | . . . Piercing . | . . . Sneak Attacks . | . . . Combat Hostiles . | . . . Follow-up Attacks . | . . . Damage Inflicted 1645 | . 984 661 Guns 556 | . 449 107 Cannons . | . . . Explosions 1088 | . 535 553 Melee . | . . . Ramming 1 | . . 1 Kinetic 204 | . 190 14 Thermal 322 | . 259 63 Explosive 996 | . 443 553 Electromagnetic 122 | . 92 30 Impact . | . . . Slashing . | . . . Piercing . | . . . Highest Corruption 1 | . 1 1 Average Corruption 1 | . 1 1 Corruption Purged . | . . . Effects 2 | . 1 1 Energy Discharges 1 | . . 1 Targeting Errors 1 | . 1 . Overload Shots . | . . . Overflow Damage 13 | . 5 8 Projectiles . | . . . Explosions 13 | . 5 8 Melee . | . . . Knockbacks . | . . . Impact . | . . . Kinetic . | . . . Secondary . | . . . Self-Inflicted Damage 93 | . 10 83 Shots 4 | . 1 3 Rammed 1 | . . 1 Targets Rammed 1 | . . 1 Kicked . | . . . Crushed . | . . . Highest Temperature 114 | . 114 80 Average Temperature 33 | . 34 31 Received Heat Transfer 87 | . 87 . Siege Activations . | . . . Robots Corrupted . | . . . Combat Hostiles . | . . . Parts Fried . | . . . Impact Corruptions . | . . . Robots Melted . | . . . Combat Hostiles . | . . . Parts Melted 2 | . 2 . Heat Transferred 748 | . 575 173 Parts Sabotaged . | . . . Parts Stolen . | . . . Parts Stripped . | . . . Power Chain Reactions . | . . . Missiles Intercepted . | . . . Alert | -11 -10 -10 ------- Run | Scr Mat Min Peak Influence 329 | . 329 103 Initial 103 | . . 103 Average 163 | . 201 82 Maximum Alert Level 1 | . 1 . Low Security (%) 59 | 100 40 100 Level 1 40 | . 59 . Level 2 . | . . . Level 3 . | . . . Level 4 . | . . . Level 5 . | . . . High Security . | . . . Max Security . | . . . Squads Dispatched 1 | . 1 . Investigation 1 | . 1 . Extermination . | . . . Reinforcement . | . . . Assault . | . . . Garrison . | . . . Intercept . | . . . Construction Impeded . | . . . Haulers Reinforced . | . . . Stealth | -11 -10 -10 --------- Run | Scr Mat Min Distress Signals 1 | . 1 . Communications Jammed . | . . . Distress Signals . | . . . Times Spotted 34 | . 24 10 Peak Tracking Total 5 | . 5 4 Tactical Retreats 4 | . 4 . Traps | -11 -10 -10 ------- Run | Scr Mat Min Traps Triggered 1 | . 1 . Indirectly . | . . . Trap Hack Attempts . | . . . Triggered . | . . . Disarmed . | . . . Reprogrammed . | . . . Reused . | . . . Traps Extracted . | . . . Installed . | . . . Triggered . | . . . Machines | -11 -10 -10 ---------- Run | Scr Mat Min Machines Disabled 7 | . 7 . Max in Single Turn 5 | . 5 . Machines Sabotaged . | . . . Garrisons Compromised . | . . . Overloaded Fab Kills . | . . . Fab Network Shutdowns . | . . . Hacking | -11 -10 -10 --------- Run | Scr Mat Min Machines Accessed 6 | . 6 . Terminals 5 | . 5 . Fabricators . | . . . Repair Stations . | . . . Recycling Units 1 | . 1 . Scanalyzers . | . . . Garrison Access . | . . . Total Hacks 25 | . 25 . Successful 7 | . 7 . Failed 18 | . 18 . Catastrophic 3 | . 3 . Database Lockouts . | . . . Manual 24 | . 24 . Terminals 21 | . 21 . Fabricators . | . . . Repair Stations . | . . . Recycling Units 4 | . 4 . Scanalyzers . | . . . Garrison Access . | . . . Terminal Hacks 3 | . 3 . Record 1 | . 1 . Robot Analysis 2 | . 2 . Fabricator Hacks . | . . . Repair Station Hacks . | . . . Recycling Unit Hacks . | . . . Scanalyzer . | . . . Garrison Access Hacks . | . . . Unauthorized Hacks 4 | . 4 . Terminals 3 | . 3 . Track 2 | . 2 . Botnet 1 | . 1 . Fabricators . | . . . Repair Stations . | . . . Recycling Units 1 | . 1 . Tunnel 1 | . 1 . Scanalyzers . | . . . Garrison Access . | . . . Data Cores Recovered . | . . . Used . | . . . Hacking Detections 6 | . 6 . Full Trace Events 2 | . 2 . Feedback Events . | . . . Feedback Blocked . | . . . Robot Schematics Acquired . | . . . Robots Built . | . . . Matter . | . . . Time . | . . . Total Robot Build Rating . | . . . Part Schematics Acquired . | . . . Parts Built . | . . . Matter . | . . . Time . | . . . Total Part Build Rating . | . . . Parts Repaired . | . . . Time . | . . . Parts Recycled . | . . . Recycled Matter . | . . . Retrieved Matter . | . . . Retrieved Components . | . . . Parts Scanalyzed . | . . . Part Schematics Acquired . | . . . Parts Damaged . | . . . Bothacking | -11 -10 -10 ------------ Run | Scr Mat Min Used RIF Installer . | . . . Robots Hacked . | . . . Non-combat . | . . . Combat . | . . . Robot Hacks Applied . | . . . Relay Couplers Released . | . . . Robots Rewired . | . . . Allies Hacked . | . . . Hacks Repelled . | . . . Allies | -11 -10 -10 -------- Run | Scr Mat Min Total Allies 2 | . . 2 Largest Group 2 | . . 2 Highest-Rated Group 46 | . . 46 Highest-Rated Ally 31 | . . 31 Total Orders . | . . . Ally Attacks . | . . . Total Damage . | . . . Kills . | . . . Allies Corrupted . | . . . Allies Melted . | . . . Intel | -11 -10 -10 ------- Run | Scr Mat Min Robot Analysis Total 2 | . 2 . Derelict Logs Recovered . | . . . Drone Launches . | . . . Drone Recoveries . | . . . Exploration | -11 -10 -10 ------------- Run | Scr Mat Min Turns Passed 1401 | 2 957 442 Spaces Moved 717 | 2 516 199 Core 1 | . . 1 Treads 705 | . 507 198 Legs 11 | 2 9 . Wheels . | . . . Hover . | . . . Flight . | . . . Fastest Speed 120 | 120 120 160 Average Speed 160 | 120 159 165 Slowest Speed 450 | 120 160 450 Overloaded Moves . | . . . Propulsion Burnouts . | . . . Robots Hopped . | . . . Cave-ins Triggered . | . . . Exploration Rate (%) 42 | 2 85 39 Regions Visited 2 Branch Regions 1 Pre-discovered Areas 1 | . 1 . Known Exits Taken . | . . . Unknown Exits Taken 2 | 1 1 . Scrap Searched . | . . . Spaces Dug 21 | . 5 16 Terrain Destroyed 128 | . 31 97 Melee . | . . . Projectile . | . . . AOE 128 | . 31 97 Terrain Rammed . | . . . Walls Destroyed . | . . . Machines Disabled . | . . . Actions | -11 -10 -10 --------- Run | Scr Mat Min Total 865 | 1 586 278 Wait 53 | . 10 43 Move 715 | 1 515 199 Hop . | . . . Pick Up 8 | . 5 3 Fast Attach 2 | . 1 1 Attach 7 | . 2 5 Detach . | . . . Swap 9 | . 7 2 Drop 5 | . 5 . Fire 65 | . 41 24 Melee . | . . . Ram . | . . . Kick . | . . . Crush 1 | . . 1 Escape Stasis . | . . . Rewire . | . . . Trap . | . . . Miscellaneous . | . . . Route ------- -11/Scrapyard -10/Materials (discovered 4 exits: [*Mat x3] / [*Min]) -10/Mines History --------- Turn | Location | Event 1 | -11/Scrapyard | Discovered new exit (range 1) 3 | -11/Scrapyard | Entered Materials 279 | -10/Materials | Discovered new exit (range 7) 318 | -10/Materials | Build established: Mutant 363 | -10/Materials | Discovered new exit (range 12) 393 | -10/Materials | Discovered new exit (range 9) 614 | -10/Materials | Discovered new exit (range 4) 960 | -10/Materials | Entered Mines 1180 | -10/Mines | Assembled infested the area 1364 | -10/Mines | Lost 3 parts (3w) 1391 | -10/Mines | Core integrity fell below 50% 1401 | -10/Mines | Core integrity fell below 20% 1402 | -10/Mines | Destroyed by D-53 Grenadier with Mini Grenade Launcher Last Messages --------------- 01338_ The unstable cave ceiling collapses. 01340_ as-04160 destroyed. 01341_ The unstable cave ceiling collapses. 01343_ Acquired 20 matter. 01349_ The unstable cave ceiling collapses. 01350_ Acquired Mak. Armor Plating. 01353_ System corrupted: Energy discharge (-52). 01355_ The unstable cave ceiling collapses. 01377_ R-06 Scavenger collects Sml. Storage Unit. 01378_ Acquired 84 matter. 01380_ R-06 Scavenger collects Com. Wheel. 01386_ R-06 Scavenger collects Lgt. Ion Engine. 01392_ Ion Engine destroyed. 01393_ The unstable cave ceiling collapses. 01393_ Slammed into D-53 Grenadier. 01394_ EM Pulse Gun destroyed. 01394_ Med. Laser destroyed. 01394_ Lgt. Treads destroyed. 01394_ D-53 Grenadier destroyed. 01399_ The unstable cave ceiling collapses. Map ----- +----------------------------------------------------+ | ?????????????????????????????????????????????????? | | ?????????????????????????????????????????????????? | | ?????????????????????????????????????????????????? | | ?????????????????????????????????????????????????? | | ?????????????????????????????????????????????????? | | ?????????????????????????????????????????????????? | | ?????????????????????????????????????????????????? | | ?????????????????????????????????????????????????? | | ?????????????????????????????????????????????????? | | ?????????????????????????????????????????????????? | | ?????????????????????????????????????????????????? | | ?????????????????????????????????????????????????? | | ?????????????????????????????????????????????????? | | ?????????????????????????????????????###?????????? | | ?????????????????????????????????????? ?????????? | | ?????????????????????????????????????? ?????????# | | ?????????????????????????????????????? ????????## | | ?????????????????????????????????????? ???????# | | ??????????????????????????????????????# ??????## | | ??????????????????????????????????????# ??????# | | ??????????????????????########????????# ?????## | | ?????????????????????## # ##???????# ###### | | ????????????????????## ##??????# | | ???????????????????## ##?????# ###### | | ???????????????????# < d #?????# ###### | | ???????????????????# @ #?????# | | ???????????????????# ##?????# # | | ???????????? # #??????### ### * # | | ???????????? # #???????# #?## # | | ??????????? #### % ##???????# #??## | | ??????????????????# ### # ##????????# #???## | | ??????????????????# ##??### ###?????????# #???## | | ??????????????????# ??????# ###??????##?# #???# | | ??????????????????#???????# #???### ### #???# | | ??????????????????????????### #???# #???# | | ????????????????????????????# #??## #####??## | | ????????????????????????????# #??# ##????## | | ????????????????????????????# #### # ##??## | | ????????????????????????????# # #?## # | | ????????????????????????????##### # #?# # | | ?????????????????????????????#### ##?# | | ????????????????????????????## # #?# | | ?????????????????????????#### # # # #?### | | ?????????????????????????# = #???## % | | ?????????????????????????# ##????##### | | ????????????????????????## = # #????????# | | ????????????????????????## ! ##????????? | | ????????????????????????## # ##????????? | | ?????????????????????????# ## ####?????????? | | ?????????????????????????# ####????????????? | +----------------------------------------------------+ Best States ------------- Heat Dissipation 25 Energy Generation 10 Energy Capacity 250 Matter Stores 300 Matter Capacity 300 Sight Range 16 Terrain Scan Density 10 Armor Coverage 100 Evasion (%) 40 Recoil Reduction 2 Item Schematics ----------------- None Robot Schematics ------------------ None Fabricated ------------ Nothing Alien Tech Used ----------------- None Achievements -------------- None Challenges ------------ None Game ------ Seed ReactionThiefRedistributor Manual? 0 Play Time 00:09:23 Cumulative 237.7 hours Start 2021.01.10 @ 13:28:24 End 2021.01.10 @ 13:35:23 Sessions 1 Manual Loads 0 Difficulty Rogue Special Mode None Game No. 215 Rogue 208 Adventurer 0 Explorer 7 Win Type - Total 5 Types 1/0/4/0/0/0/0/0/0 Lore% 72 Gallery% 91 Achievement% 69 Wizard Run 0 Options --------- ASCII 0 Keyboard 0 Movement Mouse Keybinds 0 Fullscreen 1 Font 18/X11 Map View 76x50 Tactical HUD 1 Map Filters NONE Filters NONE Steam 1 RUN: cf6416f4-7665-4c9b-b85e-61430ca6634e